bitfinex/quotes_ETHUSD_20250804
["timestamp","ask_amount","ask_price","bid_price","bid_amount"]
[1754312364463,3.35616522,3575.5,3575.4,0.002]
[1754312364750,4.13306522,3575.5,3575.4,0.002]
[1754312365726,2.79709882,3575.2,3574.6,0.5582]
[1754312365943,2.79721349,3575.0,3574.6,0.5582]
[1754312366146,2.79712455,3575.1,3574.6,1.0099]
[1754312366388,7.05704751,3575.2,3574.6,0.4517]
[1754312366553,11.49724185,3574.9,3574.3,0.002]
[1754312366757,2.79735935,3574.8,3574.3,0.002]
[1754312366958,15.75824185,3574.9,3574.4,1.0099]
[1754312366959,18.55552616,3574.9,3574.4,1.0099]
[1754312367159,18.55552616,3574.9,3574.5,1.0099]
[1754312367358,19.13532616,3574.9,3574.3,2.41083085]
[1754312367758,2.79728431,3574.9,3574.3,2.41083085]
[1754312368081,7.05928431,3574.9,3574.2,2.7977993]
[1754312368868,5.53482447,3574.9,3574.1,2.79786175]
[1754312369067,5.53482447,3574.9,3574.0,4.261]
[1754312369068,6.11462447,3574.9,3574.0,4.261]
[1754312369274,2.79735929,3574.8,3574.1,0.5582]
[1754312369472,3.37715929,3574.8,3574.1,1.0099]
[1754312369685,0.14,3574.5,3574.1,1.0099]
[1754312370011,0.14,3574.5,3574.2,1.0099]
[1754312370298,0.14,3574.5,3574.2,3.80767467]
[1754312370464,0.14,3574.5,3574.3,0.4517]
[1754312370657,0.14,3574.5,3574.1,2.79788114]
[1754312370860,0.14,3574.5,3574.2,0.5582]
[1754312371096,0.14,3574.5,3574.3,0.4517]
[1754312371955,0.14,3574.5,3574.2,3.35601752]
[1754312371956,0.14,3574.5,3574.2,2.40880409]
[1754312372979,0.14,3574.5,3574.3,2.79770655]
[1754312373392,0.14,3574.5,3574.3,2.38850655]
[1754312373693,0.14,3574.5,3574.4,2.79767233]
[1754312374067,7.05,3574.8,3574.4,1.34535795]
[1754312374266,7.19,3574.8,3574.6,2.7974668]
[1754312374597,7.19,3574.8,3574.7,2.79743754]
[1754312375409,7.19,3574.8,3574.6,2.79748328]
[1754312375708,7.19,3574.8,3574.6,3.25748328]
[1754312375896,7.19,3574.8,3574.6,2.79748328]
[1754312376088,7.19,3574.8,3574.7,2.79743754]
[1754312376293,7.19,3574.8,3574.6,2.79748928]
[1754312376903,7.19,3574.8,3574.7,2.79743754]
[1754312377084,0.14,3575.1,3574.7,3.13513754]
[1754312377283,0.14,3575.1,3574.9,2.79728104]
[1754312377805,0.7351,3575.1,3574.9,2.79728104]
[1754312379706,0.7351,3575.1,3574.8,2.79733096]
[1754312380772,0.7351,3575.1,3574.7,4.259]
[1754312380773,0.7351,3575.1,3574.9,2.79728021]
[1754312381424,0.7351,3575.1,3574.8,2.7973367]
[1754312381633,0.5951,3575.0,3574.8,2.7973367]
[1754312382200,0.5951,3575.0,3574.8,2.79730946]
[1754312383335,1.0419,3574.9,3574.7,7.05638088]
[1754312383496,0.14,3575.1,3574.7,7.05638088]
[1754312383497,0.5951,3574.8,3574.7,7.05638088]
[1754312383827,0.5951,3575.0,3574.7,7.05638088]
[1754312384033,0.14,3575.1,3574.7,4.259]
[1754312384336,0.5951,3574.9,3574.7,4.259]
[1754312384537,2.79733715,3574.9,3574.6,7.0]
[1754312384713,0.14,3574.7,3574.6,7.0]
[1754312384902,1.1819,3574.7,3574.6,7.0]
[1754312386332,5.95268049,3574.7,3574.6,7.0]
[1754312388555,5.95268049,3574.7,3574.6,6.9845]
[1754312389455,5.95268049,3574.7,3574.6,7.0]
[1754312389653,10.21268049,3574.7,3574.6,7.0]
[1754312389832,2.233,3574.3,3572.3,6.72]
[1754312390027,11.49724185,3573.6,3572.9,2.79879306]
[1754312390264,4.8671,3573.5,3572.9,2.79879306]
[1754312390444,7.07039371,3573.5,3572.9,2.79879306]
[1754312390639,0.5951,3573.4,3572.9,2.79879306]
[1754312390869,7.07039371,3573.5,3573.0,2.79874281]
[1754312390870,0.5951,3573.3,3573.0,2.79874281]
[1754312391052,2.79815044,3573.8,3573.0,2.79874281]
[1754312391053,4.272,3573.4,3573.2,2.79856459]
[1754312391257,0.5951,3573.8,3573.3,0.46]
[1754312391258,4.272,3573.5,3573.3,0.46]
[1754312391452,3.39324411,3573.8,3573.1,2.79866395]
[1754312391658,4.8661,3573.7,3573.1,2.79866395]
[1754312391859,4.8661,3573.7,3573.2,2.79860064]
[1754312392204,3.39343747,3573.6,3573.0,3.25874535]
[1754312392371,3.84023747,3573.6,3572.9,2.79882503]
[1754312392567,0.5951,3573.5,3572.9,2.79882503]
[1754312392747,4.271,3573.4,3572.9,2.79882503]
[1754312392953,0.5951,3573.3,3572.9,2.79882503]
[1754312393138,0.5951,3573.2,3572.8,7.06991561]
[1754312393536,0.5951,3573.2,3572.8,2.79891561]
[1754312394170,4.272,3573.3,3572.8,3.25891561]
[1754312394368,0.5951,3573.4,3572.8,0.46]
[1754312394554,4.272,3573.3,3572.9,3.25877775]
[1754312394762,4.272,3573.3,3572.9,2.79884687]
[1754312394937,3.39337354,3573.7,3573.0,0.46]
[1754312395267,2.79824066,3573.7,3573.1,2.79867782]
[1754312395439,4.272,3573.6,3573.1,2.79867782]
[1754312395970,4.8671,3573.6,3573.2,2.79860572]
[1754312396297,4.8671,3573.6,3573.1,3.25866111]
[1754312396499,4.272,3573.6,3573.2,2.79859635]
[1754312396665,0.5951,3573.5,3573.1,2.79868597]
[1754312396990,0.5951,3573.4,3572.9,7.07079691]
[1754312397190,4.7188,3573.6,3573.0,2.79876741]
[1754312397191,7.51712697,3573.6,3573.0,2.79876741]
[1754312397394,0.5951,3573.4,3573.0,2.79876741]
[1754312397886,7.51712697,3573.6,3573.0,2.79876741]
[1754312398084,3.0,3574.0,3573.0,2.79876854]
[1754312398285,9.11289458,3573.9,3573.3,2.79846396]
[1754312398886,0.5951,3573.8,3573.3,2.79846396]
[1754312399075,0.5951,3573.7,3573.3,2.79846396]
[1754312399278,0.5951,3573.7,3573.4,2.79844505]
[1754312399477,4.27,3573.6,3573.5,2.79834141]
[1754312399682,4.27,3573.6,3573.4,3.25844815]
[1754312399999,0.14,3573.6,3573.5,2.79837694]
[1754312400198,0.14,3573.7,3573.5,2.79837694]
[1754312400505,0.14,3573.8,3573.7,2.79821708]
[1754312400663,0.5951,3574.1,3573.6,4.27]
[1754312400664,0.14,3574.1,3573.6,4.27]
[1754312400864,0.14,3574.1,3573.7,0.46]
[1754312401068,0.14,3574.1,3573.9,2.79800356]
[1754312401769,0.14,3574.1,3574.0,2.79798545]
[1754312401987,0.14,3574.1,3573.9,2.7980348]
[1754312402602,0.5879,3574.0,3573.7,2.79818818]
[1754312402788,0.5879,3573.9,3573.6,4.27]
[1754312402989,0.6,3574.1,3573.5,0.14]
[1754312402990,0.7279,3573.8,3573.5,7.06733299]
[1754312403301,0.46,3574.0,3573.9,7.0]
[1754312403504,0.46,3574.0,3573.9,6.2721]
[1754312403707,2.79785948,3574.2,3574.0,2.79797656]
[1754312403708,4.27,3574.2,3574.0,2.79797656]
[1754312403912,4.41,3574.2,3573.9,6.2721]
[1754312404680,0.46,3574.1,3573.9,6.2721]
[1754312404880,3.25791617,3574.1,3573.9,6.2721]
[1754312405083,5.76240125,3574.0,3573.9,6.2721]
[1754312405398,5.76240125,3574.0,3573.9,7.0]
[1754312405600,3.1044158,3574.0,3573.9,7.0]
[1754312405918,5.90240125,3574.0,3573.9,7.0]
[1754312406283,4.41,3574.0,3573.9,7.0]
[1754312406695,4.27,3574.1,3573.9,7.0]
[1754312406893,4.27,3574.1,3574.0,2.79798545]
[1754312407085,0.14,3574.2,3574.0,2.79798545]
[1754312407587,0.14,3574.2,3574.0,2.79795589]
[1754312407981,0.14,3574.2,3573.9,2.79804113]
[1754312408581,0.14,3574.2,3574.0,2.79797413]
[1754312408787,0.14,3574.2,3574.0,2.79792285]
[1754312410017,0.14,3574.2,3574.1,2.79790716]
[1754312411014,0.14,3574.2,3574.0,2.79795576]
[1754312411213,0.14,3574.2,3574.1,2.79790716]
[1754312411427,4.268,3574.4,3574.3,2.79771831]
[1754312411618,4.408,3574.4,3574.3,2.79771831]
[1754312412822,0.14,3574.4,3574.3,2.79771831]
[1754312413020,4.408,3574.4,3574.3,2.79771831]
[1754312413930,4.408,3574.4,3574.2,2.79780536]
[1754312414132,4.408,3574.4,3574.3,2.7977506]
[1754312414441,4.9959,3574.4,3574.3,2.7977506]
[1754312414638,4.9959,3574.4,3573.9,0.7158]
[1754312414951,4.9959,3574.4,3574.1,2.7978573]
[1754312415152,4.9959,3574.4,3574.2,2.79780116]
[1754312415331,4.9959,3574.4,3573.9,0.14]
[1754312415523,0.5879,3574.3,3574.2,2.79781007]
[1754312415754,4.408,3574.4,3574.2,2.79781007]
[1754312415755,0.14,3574.4,3574.3,2.7977506]
[1754312415960,4.406,3574.4,3574.3,2.7977506]
[1754312416453,4.406,3574.4,3574.1,2.79786082]
[1754312416629,0.14,3574.6,3574.3,2.79769243]
[1754312416842,4.266,3574.5,3574.3,2.79769243]
[1754312417021,0.14,3574.6,3574.3,2.79769243]
[1754312417022,0.14,3574.6,3574.5,2.79759406]
[1754312417423,0.14,3574.6,3574.5,3.83739406]
[1754312417650,0.001,3574.8,3574.7,2.79743754]
[1754312419678,0.001,3574.8,3574.7,3.26143754]
[1754312419965,0.001,3574.8,3574.7,3.97723754]
[1754312420253,0.001,3574.8,3574.7,6.23124489]
[1754312421425,0.001,3574.8,3574.7,5.19144489]
[1754312421627,0.001,3574.8,3574.7,7.20643754]
[1754312421955,0.001,3574.8,3574.7,7.20543754]
[1754312424959,0.001,3574.8,3574.7,7.78123754]
[1754312425147,0.001,3574.8,3574.7,8.24523754]
[1754312425353,1e-08,3576.3,3576.2,6.34626419]
[1754312425528,1e-08,3576.3,3576.2,11.52752617]
[1754312425730,0.5879,3577.2,3577.1,2.79556064]
[1754312425935,0.5879,3577.2,3576.9,2.79567968]
[1754312425936,1.0479,3577.2,3576.9,2.79567968]
[1754312426278,0.46,3577.1,3577.0,2.7956388]
[1754312426692,1.0479,3577.1,3577.0,2.7956388]
[1754312426844,1.0479,3577.1,3576.6,4.303]
[1754312427050,0.14,3576.8,3576.5,4.303]
[1754312427231,0.14,3576.8,3576.7,2.79587329]
[1754312427626,0.14,3576.8,3576.3,0.14]
[1754312427872,0.7279,3576.8,3576.7,7.0]
[1754312428659,1.1879,3576.8,3576.7,7.0]
[1754312429065,0.14,3576.8,3576.7,7.0]
[1754312429274,1.1879,3576.8,3576.7,7.0]
[1754312429478,1.1879,3576.8,3576.7,9.79587329]
[1754312429683,1.1879,3576.8,3576.7,7.0]
[1754312431474,1.1379,3576.8,3576.7,7.0]
[1754312432646,4.32704207,3576.8,3576.7,7.0]
[1754312432838,8.23169512,3576.8,3576.7,7.0]
[1754312433264,5.4869,3576.8,3576.7,7.0]
[1754312433565,8.28269512,3576.8,3576.7,7.0]
[1754312434172,5.0521,3576.8,3576.7,7.0]
[1754312434338,8.27859512,3576.8,3576.7,7.0]
[1754312434533,9.38602008,3576.8,3576.7,5.6003]
[1754312435041,6.59022496,3576.8,3576.7,5.6003]
[1754312435451,6.59022496,3576.8,3576.7,7.0]
[1754312435672,1.1828,3576.8,3576.7,7.0]
[1754312436174,5.0511,3576.8,3576.7,7.0]
[1754312436967,0.14,3576.8,3576.7,7.0]
[1754312437277,4.438,3576.8,3576.5,2.79602891]
[1754312437486,4.438,3576.8,3576.2,7.09420356]
[1754312437487,0.14,3576.6,3576.4,2.79608198]
[1754312437854,0.14,3576.6,3576.3,2.79616242]
[1754312438055,0.14,3576.6,3576.4,2.79609456]
[1754312438263,0.14,3576.6,3576.3,2.79615845]
[1754312438464,0.14,3576.6,3576.3,2.7961529]
[1754312438661,0.14,3576.6,3576.4,2.79610565]
[1754312438848,0.14,3576.6,3576.3,2.79615144]
[1754312439056,0.14,3576.6,3576.2,4.298]
[1754312439388,0.14,3576.6,3576.3,2.7961841]
[1754312440153,4.9101,3576.8,3576.3,2.7961841]
[1754312440154,4.9101,3576.8,3576.7,6.86]
[1754312440395,7.70589512,3576.8,3576.7,0.14]
[1754312440555,9.62674187,3576.8,3576.7,0.14]
[1754312441184,6.83094675,3576.8,3576.7,0.14]
[1754312441488,9.62674187,3576.8,3576.7,0.14]
[1754312441906,6.83094675,3576.8,3576.7,0.14]
[1754312442071,6.83094675,3576.8,3576.7,7.0]
[1754312442472,9.62674187,3576.8,3576.7,7.0]
[1754312442983,6.83094675,3576.8,3576.7,7.0]
[1754312443182,5.4808,3576.8,3576.7,7.0]
[1754312443385,8.27659512,3576.8,3576.7,7.0]
[1754312443795,8.27759512,3576.8,3576.7,7.0]
[1754312444099,8.27759512,3576.8,3576.6,0.002]
[1754312444100,5.4818,3576.8,3576.6,0.002]
[1754312444264,2.79587329,3576.7,3576.6,0.002]
[1754312444463,3.83867329,3576.7,3576.6,0.002]
[1754312444664,5.2460189,3576.7,3576.6,0.002]
[1754312444897,1.46804803,3578.0,3576.8,2.79579512]
[1754312445061,1.0614902,3580.3,3578.2,2.79470124]
[1754312445062,0.0349201,3579.6,3578.2,2.79470124]
[1754312445261,3.8545727,3580.3,3578.2,2.79470124]
[1754312445262,0.03491717,3579.9,3578.6,5.79438886]
[1754312445484,1.20759556,3580.3,3578.7,3.0]
[1754312445678,1.0614902,3580.3,3579.2,3.0]
[1754312445879,0.6121,3580.2,3579.3,4.614]
[1754312446079,0.6121,3580.2,3579.9,2.79337411]
[1754312446476,1.0614902,3580.3,3579.3,0.3]
[1754312446809,1.5328,3580.0,3579.4,4.315]
[1754312446994,0.6121,3579.9,3578.8,3.0]
[1754312447302,0.49,3580.0,3578.9,3.0]
[1754312447503,0.6121,3579.9,3579.1,2.79399849]
[1754312447802,1.0428,3579.9,3579.3,2.79376843]
[1754312448003,1.47539994,3579.9,3579.2,4.316]
[1754312448204,0.49,3580.0,3578.8,0.02794232]
[1754312448405,0.9207,3580.0,3578.9,2.79414602]
[1754312448605,0.6121,3579.9,3578.6,0.55]
[1754312448823,3.40548894,3579.9,3578.8,3.00577538]
[1754312448980,0.6121,3579.8,3578.8,3.34421405]
[1754312449182,0.9207,3580.0,3578.5,3.28446172]
[1754312449183,0.49,3580.0,3578.5,0.49]
[1754312449415,0.49,3580.0,3578.6,4.35194388]
[1754312449599,0.49,3580.0,3578.7,0.55]
[1754312449772,3.49,3580.0,3579.1,2.79398349]
[1754312450078,0.49,3580.0,3579.2,7.13089531]
[1754312450284,0.49,3580.0,3579.2,4.337]
[1754312450496,0.49,3580.0,3579.2,7.13090463]
[1754312450685,0.49,3580.0,3579.2,4.337]
[1754312450893,2.79338237,3579.9,3579.2,4.337]
[1754312451298,2.79354007,3579.7,3579.1,4.335]
[1754312451497,0.6121,3579.8,3578.5,0.49]
[1754312451696,0.6121,3579.8,3578.6,4.336]
[1754312451909,0.6121,3579.8,3578.7,0.55]
[1754312452115,0.6121,3579.8,3579.0,2.79405883]
[1754312452416,3.40555649,3579.8,3579.0,4.337]
[1754312452921,0.6121,3579.8,3579.0,4.337]
[1754312453091,3.40561137,3579.8,3579.1,2.79399016]
[1754312453419,0.6121,3579.8,3579.2,2.7939153]
[1754312454123,3.40557611,3579.8,3579.1,2.79398179]
[1754312454293,3.40557611,3579.8,3579.1,2.79399742]
[1754312454294,0.43262007,3579.7,3579.1,2.79399742]
[1754312454876,3.43262007,3579.7,3579.1,9.79399742]
[1754312455082,0.49,3580.0,3579.2,2.79392042]
[1754312455307,0.49,3580.0,3579.1,7.0]
[1754312455511,0.49,3580.0,3579.6,2.79354744]
[1754312455682,0.49,3580.0,3579.6,2.79353941]
[1754312455882,0.49,3580.0,3579.7,2.79351631]
[1754312456078,0.49,3580.0,3579.7,2.79350147]
[1754312456304,0.49,3580.0,3579.9,2.79337411]
[1754312456611,0.49,3580.0,3579.8,2.79341973]
[1754312456983,0.49,3580.0,3579.9,2.79337411]
[1754312457328,2.79285784,3580.6,3579.9,2.79337411]
[1754312457329,0.18730065,3582.4,3580.6,2.79282801]
[1754312457534,0.18730065,3582.4,3581.9,2.79179355]
[1754312457679,0.18730065,3582.4,3582.0,0.02791736]
[1754312458034,1.0428,3582.3,3581.9,7.0]
[1754312458338,2.79173646,3582.0,3581.9,7.0]
[1754312458631,4.681,3581.9,3580.5,10.55328636]
[1754312458920,3.0,3581.4,3580.5,10.55328636]
[1754312459082,5.792532,3581.0,3580.5,10.55328636]
[1754312459410,2.79188542,3581.9,3580.5,10.55328636]
[1754312459411,0.79940065,3582.4,3580.6,1.0369]
[1754312459712,0.79940065,3582.4,3581.8,2.79183391]
[1754312459926,0.79940065,3582.4,3581.3,0.5919]
[1754312460126,5.26640065,3582.4,3581.3,0.5919]
[1754312460331,2.79183786,3581.9,3581.0,8.16918274]
[1754312460551,1.0428,3581.8,3581.0,8.16918274]
[1754312460700,2.79226909,3581.4,3581.0,8.16918274]
[1754312460901,0.6121,3581.3,3581.0,8.16918274]
[1754312461129,0.4307,3581.4,3581.0,8.16918274]
[1754312461436,1.0455,3581.4,3581.0,6.77118274]
[1754312461645,3.0,3582.3,3581.8,7.0]
[1754312461827,0.18730065,3582.4,3581.8,7.0]
[1754312461828,5.7918144,3581.9,3581.8,5.10155]
[1754312462913,10.2568144,3581.9,3581.8,5.10155]
[1754312463194,10.2568144,3581.9,3581.8,3.70565]
[1754312463420,5.79243807,3581.1,3581.0,6.77118274]
[1754312463631,11.30353807,3581.1,3581.0,6.77118274]
[1754312463940,7.04495,3581.1,3581.0,6.77118274]
[1754312464148,4.32628807,3581.1,3581.0,6.77118274]
[1754312464310,8.79028807,3581.1,3581.0,6.77118274]
[1754312464696,9.83738807,3581.1,3581.0,6.77118274]
[1754312464891,9.83738807,3581.1,3581.0,7.0]
[1754312465128,9.83738807,3581.1,3581.0,5.6037]
[1754312465452,5.37338807,3581.1,3581.0,5.6037]
[1754312465746,9.83838807,3581.1,3581.0,5.6037]
[1754312466098,9.83838807,3581.1,3581.0,7.0]
[1754312466612,10.38838807,3581.1,3579.6,5.0559]
[1754312466830,2.79319629,3580.2,3579.6,5.0559]
[1754312467000,2.79319629,3580.2,3579.6,0.5939]
[1754312467193,2.79319629,3580.2,3579.6,1.068]
[1754312468007,4.461,3580.3,3579.6,3.86159872]
[1754312468245,4.461,3580.3,3579.6,1.068]
[1754312468900,4.462,3580.3,3579.9,2.79334414]
[1754312469100,4.462,3580.3,3580.0,1.068]
[1754312469325,3.0,3580.7,3580.1,1.068]
[1754312469497,4.459,3580.8,3580.2,0.5939]
[1754312470329,4.459,3580.8,3580.2,3.38701092]
[1754312470544,0.001,3581.1,3580.3,1.068]
[1754312470749,4.81858,3581.0,3580.3,0.5939]
[1754312471170,4.457,3580.9,3580.6,2.79276336]
[1754312471368,4.457,3580.9,3580.7,0.5939]
[1754312471584,0.001,3581.1,3580.7,3.38662659]
[1754312471733,0.001,3581.1,3580.7,1.068]
[1754312472047,4.457,3581.0,3580.7,3.86072471]
[1754312472243,0.001,3581.1,3580.7,0.4741]
[1754312472552,0.001,3581.1,3580.8,3.8606038]
[1754312472964,0.001,3581.1,3580.9,0.5939]
[1754312473158,0.001,3581.1,3581.0,2.79251605]
[1754312473357,0.001,3581.1,3580.7,0.5939]
[1754312473531,0.001,3581.1,3580.9,2.7925889]
[1754312473738,0.001,3581.1,3580.9,0.5939]
[1754312474067,0.001,3581.1,3581.0,3.86051605]
[1754312474382,0.001,3581.1,3580.5,7.0]
[1754312474680,2.79282801,3580.6,3580.5,7.0]
[1754312474882,7.24882801,3580.6,3580.5,7.0]
[1754312475092,0.001,3581.1,3580.5,7.0]
[1754312475257,2.79282801,3580.6,3580.5,7.0]
[1754312475446,3.83992801,3580.6,3580.5,7.0]
[1754312475651,1.0471,3580.6,3580.5,7.0]
[1754312476053,0.6148,3580.6,3580.5,5.6032]
[1754312476276,3.83992801,3580.6,3580.5,5.6032]
[1754312476482,4.39102424,3580.6,3580.5,5.6032]
[1754312476975,4.39102424,3580.6,3580.5,7.0]
[1754312477378,8.84502424,3580.6,3580.5,7.0]
[1754312478355,7.79792424,3580.6,3580.5,7.0]
[1754312478556,8.84502424,3580.6,3580.5,7.0]
[1754312478997,11.84502424,3580.6,3580.5,7.0]
[1754312479989,11.41272424,3580.6,3580.5,7.0]
[1754312480287,3.55109623,3580.6,3580.5,7.0]
[1754312480489,8.00009623,3580.6,3580.5,7.0]
[1754312481059,8.00109623,3580.6,3580.5,7.0]
[1754312481678,3.0,3580.5,3579.8,2.79340115]
[1754312481862,0.36158,3580.5,3579.9,2.79336587]
[1754312482058,4.448,3580.4,3579.7,0.5939]
[1754312482478,3.15453544,3580.5,3579.8,2.79342336]
[1754312482791,3.15453544,3580.5,3579.9,2.79337353]
[1754312483001,3.36158,3580.5,3579.9,0.5939]
[1754312483289,4.445,3580.4,3579.9,0.5939]
[1754312483489,7.78908152,3580.4,3579.9,0.5939]
[1754312483691,3.55109623,3580.4,3579.5,0.5939]
[1754312483991,10.78808265,3580.4,3579.9,0.5939]
[1754312484182,1.0471,3580.3,3579.7,2.79350586]
[1754312484582,1.0471,3580.3,3579.8,2.79343372]
[1754312484785,0.6148,3580.3,3579.8,2.79340335]
[1754312484959,0.36158,3580.2,3579.8,2.79340335]
[1754312485159,3.22516246,3580.6,3580.5,0.23055297]
[1754312485361,3.22516246,3580.6,3580.5,6.99999297]
[1754312485561,7.66616246,3580.6,3580.5,0.23055297]
[1754312485860,3.22516246,3580.6,3580.5,0.23055297]
[1754312486065,7.66616246,3580.6,3580.5,0.23055297]
[1754312487376,2.7929946,3580.4,3579.8,3.38730395]
[1754312487583,7.23208306,3580.3,3579.8,0.5939]
[1754312487794,3.22512801,3580.6,3580.5,2.33044]
[1754312487971,2.79314101,3580.2,3579.8,0.5939]
[1754312488169,7.22914101,3580.2,3579.8,0.5939]
[1754312488382,4.436,3580.2,3579.8,0.5939]
[1754312488590,7.2291475,3580.2,3579.8,0.5939]
[1754312488788,7.2291475,3580.2,3579.6,3.38748736]
[1754312488983,7.2291475,3580.2,3579.7,2.79348071]
[1754312488984,4.436,3580.2,3579.7,2.79348071]
[1754312489190,4.436,3580.2,3579.7,3.38738071]
[1754312489385,4.436,3580.2,3579.7,0.5939]
[1754312489777,7.22919656,3580.2,3579.7,0.5939]
[1754312490324,0.3899,3580.2,3579.9,2.79334999]
[1754312490504,4.432,3580.2,3579.8,0.4741]
[1754312490663,4.432,3580.2,3580.0,0.5939]
[1754312491101,4.432,3580.2,3579.7,3.49465447]
[1754312491318,4.432,3580.2,3579.8,0.7012]
[1754312491799,4.8857,3580.2,3579.7,2.79347939]
[1754312492004,4.8857,3580.2,3579.7,2.79353018]
[1754312492208,4.432,3580.2,3579.8,3.49460176]
[1754312492502,4.432,3580.2,3579.8,0.7012]
[1754312492867,0.4537,3580.1,3579.7,2.79350126]
[1754312493088,0.4537,3580.1,3579.8,2.7934369]
[1754312493413,2.79306702,3580.3,3579.8,3.49463521]
[1754312493579,4.426,3580.2,3579.8,3.49463521]
[1754312493783,3.4537,3580.1,3578.5,3.0]
[1754312493988,3.4537,3580.1,3577.5,6.71]
[1754312493989,3.0,3579.6,3577.5,6.71]
[1754312494302,3.0,3579.6,3578.2,0.839275]
[1754312494303,3.0,3579.4,3578.2,0.839275]
[1754312494488,1.1449,3579.5,3578.7,2.7942562]
[1754312494489,3.0,3579.2,3578.7,2.7942562]
[1754312494802,3.0,3579.0,3578.5,2.79446062]
[1754312495005,3.0,3579.0,3578.5,2.79439894]
[1754312495371,3.4537,3579.0,3578.5,2.79439894]
[1754312495973,3.4537,3579.0,3578.6,2.79438659]
[1754312496187,3.4537,3579.0,3578.6,2.79437179]
[1754312496418,0.4537,3579.0,3578.1,2.794719]
[1754312496595,3.0,3578.8,3578.7,2.79431078]
[1754312496904,0.6912,3579.6,3578.1,2.794719]
[1754312497069,3.0,3579.4,3578.7,0.7012]
[1754312497271,19.35492408,3580.2,3578.7,0.7012]
[1754312497272,1.1449,3579.9,3578.8,2.82217502]
[1754312497509,1.1449,3579.9,3579.4,2.79371147]
[1754312497708,3.0,3579.7,3579.5,0.7012]
[1754312498011,3.0,3580.0,3579.5,3.49487309]
[1754312498311,4.427,3579.7,3579.2,2.79384921]
[1754312498475,3.0,3579.5,3579.2,2.79384921]
[1754312498989,3.0,3579.5,3579.2,0.7012]
[1754312499193,0.4537,3580.0,3579.3,3.49499488]
[1754312499398,3.0,3579.8,3579.3,0.7012]
[1754312499708,3.0,3579.8,3579.4,0.7012]
[1754312499880,3.0,3579.8,3579.4,3.49495971]
[1754312500089,3.0,3579.8,3579.4,0.7012]
[1754312500395,3.0,3579.6,3579.5,2.79363286]
[1754312500601,0.6912,3580.1,3578.8,2.79422009]
[1754312500771,0.6912,3580.7,3579.4,2.7937135]
[1754312500976,4.422,3580.5,3580.1,2.79319489]
[1754312501177,0.6912,3580.7,3580.2,2.79311418]
[1754312501398,4.424,3580.5,3580.3,2.79305679]
[1754312501601,4.423,3580.5,3580.3,2.79305679]
[1754312501800,3.0,3580.4,3580.2,2.79312442]
[1754312502006,4.423,3580.5,3580.3,2.79306203]
[1754312502209,4.423,3580.5,3580.1,2.79319203]
[1754312502210,3.0,3580.4,3580.1,2.79319203]
[1754312502397,3.0,3580.4,3579.5,0.4483]
[1754312502398,3.0,3580.4,3580.2,2.79311097]
[1754312502703,4.421,3580.4,3580.1,2.79321806]
[1754312502908,4.421,3580.4,3580.1,2.79314664]
[1754312503203,0.6922,3581.1,3580.3,2.792991]
[1754312503508,4.42,3580.7,3580.5,2.79290601]
[1754312503882,0.001,3581.1,3580.5,2.79290601]
[1754312504205,4.42,3580.9,3580.5,3.66203507]
[1754312504405,4.42,3580.9,3580.5,3.63410601]
[1754312504581,0.14,3581.0,3580.5,3.66203507]
[1754312504922,0.14,3581.0,3580.5,4.08240601]
[1754312504923,4.419,3581.0,3580.5,4.08240601]
[1754312505125,3.0,3580.9,3580.5,3.63410601]
[1754312505722,0.001,3581.1,3580.5,4.08240601]
[1754312505908,0.001,3581.1,3580.5,4.32164571]
[1754312506125,0.001,3581.1,3581.0,2.79251605]
[1754312506623,0.001,3581.1,3581.0,2.93251605]
[1754312506824,0.001,3581.1,3581.0,3.63371605]
[1754312508004,0.001,3581.1,3581.0,4.08201605]
[1754312508202,0.6912,3582.2,3581.7,2.79197029]
[1754312508396,4.416,3582.1,3581.8,2.7918316]
[1754312508591,5.1052,3582.2,3582.1,2.79165852]
[1754312508911,0.6912,3582.2,3582.1,2.79165852]
[1754312509115,3.6912,3582.2,3582.0,2.79171602]
[1754312509313,4.1449,3582.2,3582.0,2.79171602]
[1754312509620,4.1449,3582.2,3581.9,2.79178863]
[1754312509821,4.1449,3582.2,3582.0,2.7917334]
[1754312510120,4.1449,3582.2,3582.1,2.79165852]
[1754312510426,3.6912,3582.2,3582.0,2.79172067]
[1754312510733,3.6912,3582.2,3581.7,0.7012]
[1754312510734,3.0,3582.2,3581.7,0.7012]
[1754312510914,3.0,3582.2,3582.1,2.79165852]
[1754312511140,4.59630065,3582.4,3582.3,2.79150266]
[1754312511453,0.18730065,3582.4,3582.3,2.79150266]
[1754312513340,0.87850065,3582.4,3582.3,2.79150266]
[1754312513551,1.33220065,3582.4,3582.3,2.79150266]
[1754312513704,1.33220065,3582.4,3582.2,2.7915735]
[1754312514030,1.1449,3582.3,3581.6,4.408]
[1754312514233,1.1449,3582.3,3581.8,2.79182111]
[1754312514529,4.1449,3582.3,3581.7,2.79193817]
[1754312514698,0.6912,3582.2,3581.7,2.79193696]
[1754312514898,1.1449,3582.1,3581.6,7.20001936]
[1754312515228,1.1449,3582.1,3581.4,2.79219406]
[1754312515229,6.93664275,3582.0,3581.4,2.79214629]
[1754312515433,4.1449,3582.0,3581.7,7.0]
[1754312515616,1.1449,3581.9,3581.7,7.0]
[1754312516166,1.1449,3581.8,3581.7,7.0]
[1754312516437,0.18730065,3582.4,3581.7,7.0]
[1754312516732,2.79189234,3581.8,3581.7,7.0]
[1754312516897,27.90156603,3581.8,3581.7,7.0]
[1754312517096,32.0866,3581.7,3579.6,0.002]